[Event "Titled Tuesday Blitz July 4 Early 2023"]
[White "Floresvillar Gonzalez, Luis Migu"]
[Black "Omariev, Maksim"]
[WhiteFideId "5100542"]
[BlackFideId "4193423"]
[WhiteElo "2078"]
[BlackElo "2433"]
[Result "0-1"]
[Round "4"]
[TimeControl "180+2"]
[Date "2023.07.04"]
[WhiteClock "0:00:07"]
[BlackClock "0:00:38"]
[Board "196"]

1. e4 {[%clk 0:03:00]}  c5 {[%clk 0:02:59]} 2. d4 {[%clk 0:02:59]}  cxd4 {[%clk 0:02:59]} 3. c3 {[%clk 0:02:59]}  dxc3 {[%clk 0:02:59]} 4. Nxc3 {[%clk 0:02:58]}  Nc6 {[%clk 0:03:00]} 5. Bc4 {[%clk 0:02:58]}  e6 {[%clk 0:03:00]} 6. Nf3 {[%clk 0:02:57]}  a6 {[%clk 0:03:00]} 7. O-O {[%clk 0:02:54]}  Nge7 {[%clk 0:02:59]} 8. Bg5 {[%clk 0:02:52]}  f6 {[%clk 0:02:59]} 9. Be3 {[%clk 0:02:51]}  Ng6 {[%clk 0:03:00]} 10. Qe2 {[%clk 0:02:49]}  Bd6 {[%clk 0:02:56]} 11. Rfd1 {[%clk 0:02:47]}  Qe7 {[%clk 0:02:57]} 12. Rd2 {[%clk 0:02:31]}  Nce5 {[%clk 0:02:37]} 13. Nxe5 {[%clk 0:02:25]}  Bxe5 {[%clk 0:02:37]} 14. Rad1 {[%clk 0:02:17]}  O-O {[%clk 0:02:35]} 15. Qh5 {[%clk 0:01:51]}  Kh8 {[%clk 0:01:51]} 16. g3 {[%clk 0:01:35]}  f5 {[%clk 0:01:49]} 17. exf5 {[%clk 0:01:31]}  Rxf5 {[%clk 0:01:50]} 18. Qg4 {[%clk 0:01:28]}  d5 {[%clk 0:01:48]} 19. Bd3 {[%clk 0:01:27]}  Bxc3 {[%clk 0:01:39]} 20. bxc3 {[%clk 0:01:24]}  Ne5 {[%clk 0:01:38]} 21. Qe2 {[%clk 0:01:10]}  Nf3+ {[%clk 0:01:22]} 22. Kg2 {[%clk 0:01:07]}  Rf7 {[%clk 0:01:19]} 23. Rb2 {[%clk 0:01:04]}  e5 {[%clk 0:01:17]} 24. Rb6 {[%clk 0:00:39]}  Bg4 {[%clk 0:01:12]} 25. Qc2 {[%clk 0:00:35]}  e4 {[%clk 0:00:48]} 26. Be2 {[%clk 0:00:35]}  Qd7 {[%clk 0:00:42]} 27. Bd4 {[%clk 0:00:29]}  Raf8 {[%clk 0:00:40]} 28. Rdb1 {[%clk 0:00:17]}  Nxd4 {[%clk 0:00:39]} 29. cxd4 {[%clk 0:00:16]}  Rxf2+ {[%clk 0:00:40]} 30. Kg1 {[%clk 0:00:15]}  Rxe2 {[%clk 0:00:39]} 31. Rxb7 {[%clk 0:00:13]}  Rxc2 {[%clk 0:00:37]} 32. Rxd7 {[%clk 0:00:07]}  Bxd7 {[%clk 0:00:38]} 0-1


[Site "https://www.chess.com"]

[Event "Titled Tuesday Blitz July 4 Early 2023"]
[White "Guevara Sanchez, Erick Marvin"]
[Black "Herman, Daniel"]
[WhiteFideId "6700136"]
[BlackFideId "30935008"]
[WhiteElo "2061"]
[BlackElo "2432"]
[Result "0-1"]
[Round "4"]
[TimeControl "180+2"]
[Date "2023.07.04"]
[WhiteClock "0:00:19"]
[BlackClock "0:00:15"]
[Board "197"]

1. e4 {[%clk 0:03:00]}  Nf6 {[%clk 0:03:00]} 2. e5 {[%clk 0:03:00]}  Nd5 {[%clk 0:03:00]} 3. c3 {[%clk 0:03:01]}  d6 {[%clk 0:02:55]} 4. exd6 {[%clk 0:03:00]}  cxd6 {[%clk 0:02:53]} 5. Nf3 {[%clk 0:03:00]}  g6 {[%clk 0:02:46]} 6. d4 {[%clk 0:02:56]}  Bg7 {[%clk 0:02:45]} 7. Bc4 {[%clk 0:02:54]}  Nb6 {[%clk 0:02:38]} 8. Bb3 {[%clk 0:02:53]}  O-O {[%clk 0:02:37]} 9. O-O {[%clk 0:02:53]}  Nc6 {[%clk 0:02:33]} 10. Re1 {[%clk 0:02:50]}  e5 {[%clk 0:02:26]} 11. Bg5 {[%clk 0:02:47]}  Qc7 {[%clk 0:02:20]} 12. dxe5 {[%clk 0:02:47]}  dxe5 {[%clk 0:02:19]} 13. Be3 {[%clk 0:02:42]}  Bf5 {[%clk 0:02:15]} 14. Nbd2 {[%clk 0:02:38]}  Rad8 {[%clk 0:02:10]} 15. Qc1 {[%clk 0:02:32]}  Nd5 {[%clk 0:02:02]} 16. Bc5 {[%clk 0:02:14]}  Rfe8 {[%clk 0:01:56]} 17. Nc4 {[%clk 0:02:08]}  Nf4 {[%clk 0:01:49]} 18. Re3 {[%clk 0:01:31]}  Nd3 {[%clk 0:01:48]} 19. Qf1 {[%clk 0:01:30]}  Nxc5 {[%clk 0:01:47]} 20. g3 {[%clk 0:01:25]}  Nxb3 {[%clk 0:01:43]} 21. axb3 {[%clk 0:01:26]}  Bh6 {[%clk 0:01:34]} 22. Ree1 {[%clk 0:01:24]}  Bd3 {[%clk 0:01:30]} 23. Qg2 {[%clk 0:01:25]}  e4 {[%clk 0:01:29]} 24. Nfd2 {[%clk 0:01:24]}  b5 {[%clk 0:01:27]} 25. Ne3 {[%clk 0:01:23]}  f5 {[%clk 0:01:14]} 26. Ndf1 {[%clk 0:01:16]}  Ne5 {[%clk 0:01:13]} 27. Kh1 {[%clk 0:01:07]}  Nf3 {[%clk 0:01:12]} 28. Red1 {[%clk 0:01:07]}  Be2 {[%clk 0:01:09]} 29. Rxd8 {[%clk 0:01:06]}  Rxd8 {[%clk 0:01:10]} 30. h4 {[%clk 0:00:57]}  Ne1 {[%clk 0:01:09]} 31. Qh3 {[%clk 0:00:51]}  Bf3+ {[%clk 0:01:08]} 32. Kg1 {[%clk 0:00:50]}  Nd3 {[%clk 0:01:08]} 33. h5 {[%clk 0:00:49]}  Bg7 {[%clk 0:00:37]} 34. h6 {[%clk 0:00:47]}  Bf6 {[%clk 0:00:33]} 35. Nh2 {[%clk 0:00:41]}  Nxf2 {[%clk 0:00:25]} 36. Kxf2 {[%clk 0:00:35]}  Rd2+ {[%clk 0:00:26]} 37. Kg1 {[%clk 0:00:35]}  Qc5 {[%clk 0:00:23]} 38. Re1 {[%clk 0:00:33]}  Bg5 {[%clk 0:00:21]} 39. Nf1 {[%clk 0:00:30]}  Rg2+ {[%clk 0:00:20]} 40. Qxg2 {[%clk 0:00:28]}  Bxg2 {[%clk 0:00:19]} 41. Kxg2 {[%clk 0:00:28]}  a5 {[%clk 0:00:19]} 42. Rd1 {[%clk 0:00:28]}  Bxe3 {[%clk 0:00:18]} 43. Rd8+ {[%clk 0:00:27]}  Kf7 {[%clk 0:00:18]} 44. Rd7+ {[%clk 0:00:28]}  Kf6 {[%clk 0:00:18]} 45. Rxh7 {[%clk 0:00:28]}  Bg1 {[%clk 0:00:16]} 46. Kh3 {[%clk 0:00:19]}  Qf2 {[%clk 0:00:16]} 47. Nd2 {[%clk 0:00:19]}  Qh2# {[%clk 0:00:15]} 0-1


[Site "https://www.chess.com"]

[Event "Titled Tuesday Blitz July 4 Early 2023"]
[White "Nan M K Khine Hlyan"]
[Black "Fisabilillah, Ummi"]
[WhiteFideId "13002899"]
[BlackFideId "7104804"]
[WhiteElo "1750"]
[BlackElo "2429"]
[Result "1-0"]
[Round "4"]
[TimeControl "180+2"]
[Date "2023.07.04"]
[WhiteClock "0:00:14"]
[BlackClock "0:00:13"]
[Board "199"]

1. e4 {[%clk 0:03:00]}  g6 {[%clk 0:02:57]} 2. d4 {[%clk 0:03:00]}  Bg7 {[%clk 0:02:58]} 3. Bc4 {[%clk 0:02:58]}  d6 {[%clk 0:02:56]} 4. Nf3 {[%clk 0:02:58]}  Nf6 {[%clk 0:02:54]} 5. Nc3 {[%clk 0:02:42]}  Nc6 {[%clk 0:02:52]} 6. O-O {[%clk 0:02:25]}  Bg4 {[%clk 0:02:52]} 7. Be3 {[%clk 0:02:17]}  e5 {[%clk 0:02:46]} 8. d5 {[%clk 0:02:08]}  Ne7 {[%clk 0:02:43]} 9. Bb5+ {[%clk 0:02:05]}  Nd7 {[%clk 0:02:35]} 10. h3 {[%clk 0:02:02]}  Bxf3 {[%clk 0:02:36]} 11. Qxf3 {[%clk 0:02:00]}  O-O {[%clk 0:02:36]} 12. Qg4 {[%clk 0:01:54]}  f5 {[%clk 0:02:29]} 13. exf5 {[%clk 0:01:52]}  gxf5 {[%clk 0:02:30]} 14. Qh4 {[%clk 0:01:47]}  f4 {[%clk 0:02:29]} 15. Bd2 {[%clk 0:01:42]}  Nf6 {[%clk 0:02:27]} 16. Rad1 {[%clk 0:01:32]}  Kf7 {[%clk 0:01:41]} 17. g4 {[%clk 0:01:11]}  Ng6 {[%clk 0:01:30]} 18. Qg5 {[%clk 0:01:09]}  Qc8 {[%clk 0:01:21]} 19. Bd3 {[%clk 0:00:56]}  Rg8 {[%clk 0:01:21]} 20. Bf5 {[%clk 0:00:53]}  Qd8 {[%clk 0:01:22]} 21. Be6+ {[%clk 0:00:52]}  Kf8 {[%clk 0:01:15]} 22. Bxg8 {[%clk 0:00:52]}  Kxg8 {[%clk 0:01:16]} 23. h4 {[%clk 0:00:51]}  Qf8 {[%clk 0:01:07]} 24. h5 {[%clk 0:00:50]}  Ne7 {[%clk 0:01:05]} 25. h6 {[%clk 0:00:48]}  Ng6 {[%clk 0:01:00]} 26. hxg7 {[%clk 0:00:48]}  Qxg7 {[%clk 0:01:01]} 27. Rde1 {[%clk 0:00:46]}  h6 {[%clk 0:00:59]} 28. Qf5 {[%clk 0:00:45]}  Kh8 {[%clk 0:00:54]} 29. g5 {[%clk 0:00:37]}  Nh7 {[%clk 0:00:48]} 30. Ne4 {[%clk 0:00:26]}  hxg5 {[%clk 0:00:39]} 31. Nxg5 {[%clk 0:00:24]}  Rf8 {[%clk 0:00:28]} 32. Qh3 {[%clk 0:00:23]}  Rg8 {[%clk 0:00:11]} 33. Qxh7+ {[%clk 0:00:19]}  Qxh7 {[%clk 0:00:11]} 34. Nxh7 {[%clk 0:00:19]}  Nh4+ {[%clk 0:00:12]} 35. Kh1 {[%clk 0:00:19]}  Kxh7 {[%clk 0:00:12]} 36. Rg1 {[%clk 0:00:18]}  Rh8 {[%clk 0:00:13]} 37. Rg4 {[%clk 0:00:16]}  Nf3 {[%clk 0:00:13]} 38. Kg2 {[%clk 0:00:14]}  Nxd2 {[%clk 0:00:13]} 39. Rh1# {[%clk 0:00:14]} 1-0


[Site "https://www.chess.com"]

[Event "Titled Tuesday Blitz July 4 Early 2023"]
[White "Weetik, Vjacheslav"]
[Black "Skiadopoulos, Nikolaos"]
[WhiteFideId "4153472"]
[BlackFideId "4200772"]
[WhiteElo "2734"]
[BlackElo "1888"]
[Result "1-0"]
[Round "4"]
[TimeControl "180+2"]
[Date "2023.07.04"]
[WhiteClock "0:01:59"]
[BlackClock "0:01:50"]
[Board "200"]

1. d4 {[%clk 0:02:59]}  Nf6 {[%clk 0:02:59]} 2. c4 {[%clk 0:02:59]}  c5 {[%clk 0:02:59]} 3. Nf3 {[%clk 0:02:56]}  g6 {[%clk 0:02:58]} 4. Nc3 {[%clk 0:02:55]}  Bg7 {[%clk 0:02:57]} 5. e4 {[%clk 0:02:53]}  O-O {[%clk 0:02:55]} 6. d5 {[%clk 0:02:46]}  d6 {[%clk 0:02:46]} 7. h3 {[%clk 0:02:45]}  Na6 {[%clk 0:02:45]} 8. Bd3 {[%clk 0:02:42]}  Nc7 {[%clk 0:02:44]} 9. O-O {[%clk 0:02:42]}  Bd7 {[%clk 0:02:44]} 10. Re1 {[%clk 0:02:35]}  Nfe8 {[%clk 0:02:37]} 11. Bf4 {[%clk 0:02:33]}  a6 {[%clk 0:02:31]} 12. a4 {[%clk 0:02:29]}  Rb8 {[%clk 0:02:22]} 13. e5 {[%clk 0:02:28]}  b5 {[%clk 0:02:21]} 14. axb5 {[%clk 0:02:27]}  axb5 {[%clk 0:02:20]} 15. b3 {[%clk 0:02:22]}  bxc4 {[%clk 0:02:13]} 16. bxc4 {[%clk 0:02:05]}  dxe5 {[%clk 0:02:12]} 17. Nxe5 {[%clk 0:02:03]}  Nd6 {[%clk 0:02:12]} 18. Ra7 {[%clk 0:02:00]}  Bf5 {[%clk 0:02:01]} 19. Nc6 {[%clk 0:02:00]}  Qc8 {[%clk 0:01:50]} 20. Nxe7+ {[%clk 0:01:59]} 1-0


[Site "https://www.chess.com"]

[Event "Titled Tuesday Blitz July 4 Early 2023"]
[White "Gaal, Zsoka"]
[Black "Burmakin, Vladimir"]
[WhiteFideId "777765"]
[BlackFideId "4105109"]
[WhiteElo "2349"]
[BlackElo "2610"]
[Result "1/2-1/2"]
[Round "4"]
[TimeControl "180+2"]
[Date "2023.07.04"]
[WhiteClock "0:00:07"]
[BlackClock "0:00:05"]
[Board "201"]

1. Nf3 {[%clk 0:03:00]}  d5 {[%clk 0:02:59]} 2. b3 {[%clk 0:02:59]}  c6 {[%clk 0:02:59]} 3. Bb2 {[%clk 0:02:59]}  Bf5 {[%clk 0:02:59]} 4. g3 {[%clk 0:02:59]}  e6 {[%clk 0:03:00]} 5. Bg2 {[%clk 0:03:00]}  Nf6 {[%clk 0:03:00]} 6. O-O {[%clk 0:03:00]}  Be7 {[%clk 0:03:00]} 7. c4 {[%clk 0:02:58]}  h6 {[%clk 0:02:59]} 8. d3 {[%clk 0:02:59]}  O-O {[%clk 0:02:58]} 9. Nbd2 {[%clk 0:02:59]}  a5 {[%clk 0:02:58]} 10. a3 {[%clk 0:02:55]}  Na6 {[%clk 0:02:57]} 11. Rc1 {[%clk 0:02:49]}  Qb6 {[%clk 0:02:56]} 12. Rc2 {[%clk 0:02:40]}  Rfd8 {[%clk 0:02:52]} 13. Qa1 {[%clk 0:02:36]}  c5 {[%clk 0:02:52]} 14. cxd5 {[%clk 0:01:55]}  exd5 {[%clk 0:02:52]} 15. Ne5 {[%clk 0:01:55]}  Be6 {[%clk 0:02:48]} 16. e4 {[%clk 0:01:50]}  dxe4 {[%clk 0:02:43]} 17. dxe4 {[%clk 0:01:47]}  a4 {[%clk 0:02:39]} 18. Nec4 {[%clk 0:01:44]}  Qb5 {[%clk 0:02:37]} 19. bxa4 {[%clk 0:01:43]}  Qe8 {[%clk 0:02:22]} 20. a5 {[%clk 0:01:39]}  Nc7 {[%clk 0:02:19]} 21. a4 {[%clk 0:01:32]}  Ra6 {[%clk 0:02:14]} 22. Be5 {[%clk 0:01:32]}  Qd7 {[%clk 0:02:04]} 23. f4 {[%clk 0:01:30]}  Ng4 {[%clk 0:01:53]} 24. f5 {[%clk 0:01:22]}  Bxc4 {[%clk 0:01:50]} 25. Nxc4 {[%clk 0:01:10]}  Nxe5 {[%clk 0:01:46]} 26. Qxe5 {[%clk 0:01:00]}  Bf6 {[%clk 0:01:43]} 27. Qf4 {[%clk 0:00:59]}  Bd4+ {[%clk 0:01:35]} 28. Kh1 {[%clk 0:00:58]}  Ne8 {[%clk 0:01:35]} 29. e5 {[%clk 0:00:58]}  Qxa4 {[%clk 0:01:31]} 30. Rcc1 {[%clk 0:00:51]}  Qb4 {[%clk 0:01:22]} 31. e6 {[%clk 0:00:42]}  fxe6 {[%clk 0:01:17]} 32. fxe6 {[%clk 0:00:43]}  Nf6 {[%clk 0:01:15]} 33. Qc7 {[%clk 0:00:37]}  Rf8 {[%clk 0:01:08]} 34. Qxb7 {[%clk 0:00:28]}  Rxe6 {[%clk 0:01:06]} 35. a6 {[%clk 0:00:18]}  Rf7 {[%clk 0:00:52]} 36. Qxb4 {[%clk 0:00:17]}  cxb4 {[%clk 0:00:51]} 37. Rfd1 {[%clk 0:00:08]}  Ba7 {[%clk 0:00:45]} 38. Na5 {[%clk 0:00:08]}  Rxa6 {[%clk 0:00:41]} 39. Nc6 {[%clk 0:00:03]}  Ra4 {[%clk 0:00:32]} 40. Rb1 {[%clk 0:00:03]}  Bc5 {[%clk 0:00:31]} 41. Rd8+ {[%clk 0:00:03]}  Rf8 {[%clk 0:00:30]} 42. Rxf8+ {[%clk 0:00:02]}  Bxf8 {[%clk 0:00:30]} 43. Bf1 {[%clk 0:00:02]}  Kh8 {[%clk 0:00:27]} 44. Bc4 {[%clk 0:00:02]}  g5 {[%clk 0:00:24]} 45. Bb5 {[%clk 0:00:03]}  Ra2 {[%clk 0:00:22]} 46. Nxb4 {[%clk 0:00:03]}  Rd2 {[%clk 0:00:20]} 47. Nd3 {[%clk 0:00:03]}  Ng4 {[%clk 0:00:20]} 48. Bc4 {[%clk 0:00:02]}  Rxd3 {[%clk 0:00:18]} 49. Bxd3 {[%clk 0:00:03]}  Nf2+ {[%clk 0:00:17]} 50. Kg2 {[%clk 0:00:04]}  Nxd3 {[%clk 0:00:18]} 51. Rb7 {[%clk 0:00:04]}  Ne5 {[%clk 0:00:17]} 52. Kf2 {[%clk 0:00:02]}  Kg8 {[%clk 0:00:17]} 53. Ke3 {[%clk 0:00:03]}  Nf7 {[%clk 0:00:16]} 54. Ke4 {[%clk 0:00:03]}  Kg7 {[%clk 0:00:17]} 55. Kd5 {[%clk 0:00:02]}  Kg6 {[%clk 0:00:16]} 56. Rb6+ {[%clk 0:00:02]}  Kg7 {[%clk 0:00:16]} 57. Ke6 {[%clk 0:00:03]}  Nh8 {[%clk 0:00:14]} 58. Rb7+ {[%clk 0:00:03]}  Kg8 {[%clk 0:00:15]} 59. Kf6 {[%clk 0:00:04]}  Bd6 {[%clk 0:00:15]} 60. Ra7 {[%clk 0:00:03]}  Bc5 {[%clk 0:00:14]} 61. Ra8+ {[%clk 0:00:04]}  Bf8 {[%clk 0:00:14]} 62. Rc8 {[%clk 0:00:04]}  Nf7 {[%clk 0:00:14]} 63. Rc7 {[%clk 0:00:04]}  Nd6 {[%clk 0:00:14]} 64. Ra7 {[%clk 0:00:04]}  g4 {[%clk 0:00:12]} 65. Kg6 {[%clk 0:00:04]}  Ne4 {[%clk 0:00:10]} 66. Ra4 {[%clk 0:00:04]}  Nf2 {[%clk 0:00:10]} 67. Rf4 {[%clk 0:00:04]}  Nd3 {[%clk 0:00:08]} 68. Rxg4 {[%clk 0:00:05]}  Ne5+ {[%clk 0:00:08]} 69. Kf5+ {[%clk 0:00:04]}  Nxg4 {[%clk 0:00:08]} 70. Kxg4 {[%clk 0:00:05]}  Kg7 {[%clk 0:00:08]} 71. Kh5 {[%clk 0:00:05]}  Kf6 {[%clk 0:00:09]} 72. h4 {[%clk 0:00:03]}  Kg7 {[%clk 0:00:04]} 73. g4 {[%clk 0:00:04]}  Kh7 {[%clk 0:00:04]} 74. g5 {[%clk 0:00:05]}  hxg5 {[%clk 0:00:04]} 75. hxg5 {[%clk 0:00:05]}  Kg7 {[%clk 0:00:04]} 76. g6 {[%clk 0:00:06]}  Be7 {[%clk 0:00:04]} 77. Kg4 {[%clk 0:00:07]}  Kxg6 {[%clk 0:00:05]} 1/2-1/2


[Site "https://www.chess.com"]

[Event "Titled Tuesday Blitz July 4 Early 2023"]
[White "Devaev, Alexander"]
[Black "Bashirli, Saadat"]
[WhiteFideId "4169395"]
[BlackFideId "13429990"]
[WhiteElo "2482"]
[BlackElo "2345"]
[Result "1-0"]
[Round "4"]
[TimeControl "180+2"]
[Date "2023.07.04"]
[WhiteClock "0:00:11"]
[BlackClock "0:00:04"]
[Board "202"]

1. d4 {[%clk 0:02:55]}  d5 {[%clk 0:03:00]} 2. c4 {[%clk 0:02:53]}  e6 {[%clk 0:03:00]} 3. Nc3 {[%clk 0:02:52]}  c6 {[%clk 0:03:01]} 4. cxd5 {[%clk 0:02:52]}  exd5 {[%clk 0:03:00]} 5. Nf3 {[%clk 0:02:53]}  Bf5 {[%clk 0:03:00]} 6. Bf4 {[%clk 0:02:49]}  Bd6 {[%clk 0:02:54]} 7. Bxd6 {[%clk 0:02:44]}  Qxd6 {[%clk 0:02:55]} 8. Qb3 {[%clk 0:02:44]}  Qe7 {[%clk 0:02:48]} 9. e3 {[%clk 0:02:45]}  Nf6 {[%clk 0:02:47]} 10. Nh4 {[%clk 0:02:44]}  Be4 {[%clk 0:02:27]} 11. Nxe4 {[%clk 0:02:41]}  Nxe4 {[%clk 0:02:08]} 12. Nf5 {[%clk 0:02:41]}  Qf6 {[%clk 0:02:08]} 13. f3 {[%clk 0:01:43]}  Qxf5 {[%clk 0:01:55]} 14. Qxb7 {[%clk 0:01:34]}  Nd6 {[%clk 0:01:51]} 15. Qxa8 {[%clk 0:01:33]}  O-O {[%clk 0:01:50]} 16. Qxa7 {[%clk 0:01:33]}  Re8 {[%clk 0:01:41]} 17. Qa3 {[%clk 0:01:32]}  Qg5 {[%clk 0:01:16]} 18. Kd2 {[%clk 0:00:17]}  Nf5 {[%clk 0:01:12]} 19. Re1 {[%clk 0:00:17]}  Nxd4 {[%clk 0:01:04]} 20. h4 {[%clk 0:00:16]}  Qg3 {[%clk 0:00:58]} 21. Qc3 {[%clk 0:00:15]}  Qf2+ {[%clk 0:00:44]} 22. Kc1 {[%clk 0:00:15]}  Nf5 {[%clk 0:00:40]} 23. Bd3 {[%clk 0:00:15]}  Nxe3 {[%clk 0:00:35]} 24. Rhf1 {[%clk 0:00:15]}  Qxh4 {[%clk 0:00:32]} 25. Rxe3 {[%clk 0:00:10]}  Qh6 {[%clk 0:00:16]} 26. Bxh7+ {[%clk 0:00:08]}  Kxh7 {[%clk 0:00:14]} 27. Re1 {[%clk 0:00:08]}  c5 {[%clk 0:00:12]} 28. Qc2+ {[%clk 0:00:08]}  g6 {[%clk 0:00:11]} 29. Qd2 {[%clk 0:00:09]}  Rd8 {[%clk 0:00:09]} 30. Re7 {[%clk 0:00:09]}  Qg7 {[%clk 0:00:08]} 31. Rh1+ {[%clk 0:00:09]}  Kg8 {[%clk 0:00:08]} 32. Qe2 {[%clk 0:00:07]}  Qf8 {[%clk 0:00:04]} 33. Re1 {[%clk 0:00:07]}  Nc6 {[%clk 0:00:03]} 34. Re8 {[%clk 0:00:08]}  Rxe8 {[%clk 0:00:02]} 35. Qxe8 {[%clk 0:00:08]}  Kg7 {[%clk 0:00:01]} 36. Qxf8+ {[%clk 0:00:09]}  Kxf8 {[%clk 0:00:02]} 37. a4 {[%clk 0:00:08]}  Nd4 {[%clk 0:00:02]} 38. Kd2 {[%clk 0:00:08]}  Nb3+ {[%clk 0:00:03]} 39. Kc3 {[%clk 0:00:08]}  Nd4 {[%clk 0:00:03]} 40. Rd1 {[%clk 0:00:09]}  Ke7 {[%clk 0:00:02]} 41. Rxd4 {[%clk 0:00:09]}  cxd4+ {[%clk 0:00:02]} 42. Kxd4 {[%clk 0:00:09]}  Kd6 {[%clk 0:00:03]} 43. b4 {[%clk 0:00:10]}  f5 {[%clk 0:00:02]} 44. f4 {[%clk 0:00:10]}  g5 {[%clk 0:00:03]} 45. fxg5 {[%clk 0:00:09]}  f4 {[%clk 0:00:03]} 46. a5 {[%clk 0:00:09]}  f3 {[%clk 0:00:04]} 47. gxf3 {[%clk 0:00:10]}  Ke6 {[%clk 0:00:04]} 48. f4 {[%clk 0:00:11]} 1-0


[Site "https://www.chess.com"]

[Event "Titled Tuesday Blitz July 4 Early 2023"]
[White "Shapiro, Viktor"]
[Black "SicilianPanzer"]
[WhiteFideId "4175700"]
[WhiteElo "2479"]
[BlackElo "2248"]
[Result "1-0"]
[Round "4"]
[TimeControl "180+2"]
[Date "2023.07.04"]
[WhiteClock "0:00:32"]
[BlackClock "0:00:00"]
[Board "203"]

1. c4 {[%clk 0:03:00]}  e6 {[%clk 0:02:57]} 2. Nc3 {[%clk 0:03:00]}  Nf6 {[%clk 0:02:55]} 3. d4 {[%clk 0:03:01]}  d5 {[%clk 0:02:54]} 4. Bg5 {[%clk 0:03:00]}  dxc4 {[%clk 0:02:53]} 5. e3 {[%clk 0:02:59]}  a6 {[%clk 0:02:50]} 6. a4 {[%clk 0:02:58]}  Nbd7 {[%clk 0:02:44]} 7. Bxc4 {[%clk 0:02:57]}  c5 {[%clk 0:02:36]} 8. Nf3 {[%clk 0:02:57]}  b6 {[%clk 0:02:32]} 9. Qe2 {[%clk 0:02:46]}  Bb7 {[%clk 0:02:29]} 10. O-O {[%clk 0:02:45]}  Be7 {[%clk 0:02:23]} 11. Rfd1 {[%clk 0:02:45]}  cxd4 {[%clk 0:02:16]} 12. Nxd4 {[%clk 0:02:43]}  h6 {[%clk 0:01:09]} 13. Bh4 {[%clk 0:02:34]}  g5 {[%clk 0:00:46]} 14. Bg3 {[%clk 0:02:30]}  Bc5 {[%clk 0:00:44]} 15. Nxe6 {[%clk 0:02:20]}  fxe6 {[%clk 0:00:42]} 16. Bxe6 {[%clk 0:02:20]}  Qe7 {[%clk 0:00:40]} 17. Bxd7+ {[%clk 0:02:04]}  Nxd7 {[%clk 0:00:39]} 18. Qh5+ {[%clk 0:02:04]}  Kf8 {[%clk 0:00:38]} 19. Nd5 {[%clk 0:02:02]}  Bxd5 {[%clk 0:00:25]} 20. Rxd5 {[%clk 0:02:01]}  Nf6 {[%clk 0:00:24]} 21. Rf5 {[%clk 0:02:01]}  Kg7 {[%clk 0:00:15]} 22. Qf3 {[%clk 0:01:52]}  Rhf8 {[%clk 0:00:13]} 23. Be5 {[%clk 0:01:50]}  Rad8 {[%clk 0:00:12]} 24. h4 {[%clk 0:01:43]}  gxh4 {[%clk 0:00:08]} 25. Rc1 {[%clk 0:01:40]}  Bd6 {[%clk 0:00:06]} 26. Bd4 {[%clk 0:01:33]}  Kg6 {[%clk 0:00:05]} 27. Bxb6 {[%clk 0:01:26]}  Rc8 {[%clk 0:00:03]} 28. Rd1 {[%clk 0:01:25]}  Be5 {[%clk 0:00:01]} 29. b4 {[%clk 0:01:21]}  Rfe8 {[%clk 0:00:02]} 30. Bd4 {[%clk 0:01:10]}  Bxd4 {[%clk 0:00:02]} 31. Rxd4 {[%clk 0:01:10]}  Qe6 {[%clk 0:00:01]} 32. Rdf4 {[%clk 0:01:03]}  Rc6 {[%clk 0:00:01]} 33. b5 {[%clk 0:00:57]}  Rd6 {[%clk 0:00:01]} 34. Kh2 {[%clk 0:00:56]}  axb5 {[%clk 0:00:01]} 35. axb5 {[%clk 0:00:55]}  Rf8 {[%clk 0:00:02]} 36. e4 {[%clk 0:00:52]}  Rb6 {[%clk 0:00:02]} 37. e5 {[%clk 0:00:51]}  Nd7 {[%clk 0:00:02]} 38. Rxf8 {[%clk 0:00:50]}  Nxf8 {[%clk 0:00:02]} 39. Rxf8 {[%clk 0:00:50]}  Qxe5+ {[%clk 0:00:02]} 40. Kh3 {[%clk 0:00:46]}  Qe6+ {[%clk 0:00:02]} 41. Kxh4 {[%clk 0:00:44]}  Rxb5 {[%clk 0:00:02]} 42. g4 {[%clk 0:00:41]}  Rg5 {[%clk 0:00:02]} 43. Qf4 {[%clk 0:00:35]}  h5 {[%clk 0:00:00]} 44. Qxg5+ {[%clk 0:00:32]} 1-0


[Site "https://www.chess.com"]

[Event "Titled Tuesday Blitz July 4 Early 2023"]
[White "Saito, Vinicius"]
[Black "Putri, Regita Desyari"]
[WhiteFideId "2113384"]
[BlackFideId "7109083"]
[WhiteElo "2399"]
[BlackElo "2247"]
[Result "1-0"]
[Round "4"]
[TimeControl "180+2"]
[Date "2023.07.04"]
[WhiteClock "0:00:41"]
[BlackClock "0:00:00"]
[Board "204"]

1. e4 {[%clk 0:03:00]}  e5 {[%clk 0:02:58]} 2. Nf3 {[%clk 0:03:01]}  Nc6 {[%clk 0:02:59]} 3. Bb5 {[%clk 0:03:01]}  a6 {[%clk 0:02:59]} 4. Ba4 {[%clk 0:03:02]}  Nf6 {[%clk 0:02:59]} 5. O-O {[%clk 0:03:02]}  Be7 {[%clk 0:02:59]} 6. Re1 {[%clk 0:03:02]}  b5 {[%clk 0:02:59]} 7. Bb3 {[%clk 0:03:02]}  O-O {[%clk 0:02:58]} 8. d4 {[%clk 0:03:02]}  exd4 {[%clk 0:02:11]} 9. e5 {[%clk 0:03:01]}  Ne8 {[%clk 0:02:11]} 10. c3 {[%clk 0:03:02]}  d5 {[%clk 0:02:07]} 11. cxd4 {[%clk 0:02:59]}  Bg4 {[%clk 0:02:04]} 12. Be3 {[%clk 0:02:57]}  Na5 {[%clk 0:01:50]} 13. Bc2 {[%clk 0:02:56]}  g6 {[%clk 0:01:47]} 14. h3 {[%clk 0:02:53]}  Be6 {[%clk 0:01:42]} 15. b3 {[%clk 0:02:38]}  Ng7 {[%clk 0:01:39]} 16. Qd2 {[%clk 0:02:09]}  Nc6 {[%clk 0:01:21]} 17. Nc3 {[%clk 0:02:00]}  Nf5 {[%clk 0:01:20]} 18. Bxf5 {[%clk 0:01:35]}  Bxf5 {[%clk 0:01:21]} 19. Bg5 {[%clk 0:01:34]}  b4 {[%clk 0:01:04]} 20. Na4 {[%clk 0:01:30]}  Be4 {[%clk 0:01:02]} 21. Bxe7 {[%clk 0:01:29]}  Qxe7 {[%clk 0:00:59]} 22. Ng5 {[%clk 0:01:29]}  Bf5 {[%clk 0:00:49]} 23. Rac1 {[%clk 0:01:27]}  Bd7 {[%clk 0:00:28]} 24. Nc5 {[%clk 0:01:15]}  Be8 {[%clk 0:00:28]} 25. Qf4 {[%clk 0:01:09]}  h6 {[%clk 0:00:20]} 26. Nf3 {[%clk 0:01:08]}  Kh7 {[%clk 0:00:16]} 27. h4 {[%clk 0:01:06]}  Kg7 {[%clk 0:00:10]} 28. Qg3 {[%clk 0:00:58]}  Kh7 {[%clk 0:00:09]} 29. h5 {[%clk 0:00:55]}  g5 {[%clk 0:00:10]} 30. Rcd1 {[%clk 0:00:50]}  Nd8 {[%clk 0:00:10]} 31. Nh2 {[%clk 0:00:49]}  Ne6 {[%clk 0:00:10]} 32. Nxe6 {[%clk 0:00:47]}  Qxe6 {[%clk 0:00:10]} 33. Ng4 {[%clk 0:00:48]}  Qf5 {[%clk 0:00:05]} 34. Nf6+ {[%clk 0:00:48]}  Kg7 {[%clk 0:00:05]} 35. Rc1 {[%clk 0:00:47]}  Rc8 {[%clk 0:00:03]} 36. Rc5 {[%clk 0:00:44]}  c6 {[%clk 0:00:03]} 37. Rec1 {[%clk 0:00:44]}  Qe6 {[%clk 0:00:01]} 38. Qe3 {[%clk 0:00:42]}  Bd7 {[%clk 0:00:00]} 39. g4 {[%clk 0:00:41]} 1-0


[Site "https://www.chess.com"]